[Event "44th Chess Olympiad Women 2022"]
[Site "Chennai"]
[Date "2022.07.30"]
[Round "2.45"]
[White "Al Mansouri, Moza"]
[Black "Markidou, Christianna"]
[Result "1-0"]
[ECO "C91"]
[WhiteElo "1606"]
[BlackElo "1701"]
[Annotator "NA RC COMBH"]
[PlyCount "105"]
[EventDate "2022.07.29"]
[EventType "team-tourn"]
[EventCountry "IND"]
[SourceTitle "playchess.com"]
[Source "ChessBase"]
[SourceQuality "1"]
[WhiteTeam "United Arab Emirates"]
[BlackTeam "Cyprus"]
[WhiteTeamCountry "UAE"]
[BlackTeamCountry "CYP"]
[TimeControl "40/5400+30:1800+30"]

1. e4 {[%emt 0:00:06]} e5 {[%emt 0:00:12]} 2. Nf3 {[%emt 0:00:02]} Nc6 {[%emt 0:01:00]} 3. Bb5 {[%emt 0:00:21]} d6 {[%emt 0:00:59]} 4. O-O {[%emt 0:05:17]} Nf6 {[%emt 0:00:16]} 5. Re1 {[%emt 0:00:21]} a6 {[%emt 0:00:55]} 6. Ba4 {[%emt 0:00:12]} b5 {[%emt 0:00:29]} 7. Bb3 {[%emt 0:00:04]} Be7 {[%emt 0:05:43]} 8. c3 {[%emt 0:03:04]} O-O {[%emt 0:02:23]} 9. d4 {[%emt 0:00:20]} Bg4 {[%emt 0:04:41]} 10. d5 {[%emt 0:04:34]} Na5 {[%emt 0:05:56]} 11. Bc2 {[%emt 0:00:38]} Nd7 {[%emt 0:01:38]} 12. Nbd2 {[%emt 0:01:48]} f5 {[%emt 0:00:33]} 13. h3 {[%emt 0:03:20]} Bxf3 {[%emt 0:01:51]} 14. Nxf3 {[%emt 0:01:55]} f4 {[%emt 0:00:16]} 15. a4 {[%emt 0:05:50]} Nb7 {[%emt 0:20:30]} 16. axb5 {[%emt 0:12:11]} axb5 {[%emt 0:01:59]} 17. Rxa8 {[%emt 0:00:13]} Qxa8 {[%emt 0:00:08]} 18. Bd3 {[%emt 0:00:35]} Qa4 {[%emt 0:43:28]} 19. Qe2 {[%emt 0:01:44]} Qb3 {[%emt 0:01:05]} 20. Bxb5 {[%emt 0:01:14]} Nb6 {[%emt 0:00:23]} 21. Nd2 {[%emt 0:11:51]} Qa2 {[%emt 0:00:34]} 22. Qg4 {[%emt 0:02:19]} Bd8 {[%emt 0:01:59]} 23. Nf3 {[%emt 0:03:49]} Nc5 {[%emt 0:00:58]} 24. Nh4 {[%emt 0:05:16]} Bxh4 {[%emt 0:00:19]} 25. Qxh4 {[%emt 0:00:04]} Nb3 {[%emt 0:00:13]} 26. Bxf4 {[%emt 0:05:27]} exf4 {[%emt 0:00:19]} 27. Qe7 {[%emt 0:00:17]} Qa7 {[%emt 0:00:45]} 28. e5 {[%emt 0:01:33]} Nc8 {[%emt 0:01:24]} 29. Qe6+ {[%emt 0:05:36]} Kh8 {[%emt 0:00:05]} 30. exd6 {[%emt 0:01:39]} Nxd6 {[%emt 0:00:16]} 31. Qe7 {[%emt 0:00:47]} Qb8 {[%emt 0:00:10]} 32. Bc6 {[%emt 0:01:10]} Na5 {[%emt 0:00:19]} 33. Ba4 {[%emt 0:00:27]} Nac4 {[%emt 0:00:41]} 34. b3 {[%emt 0:01:04]} Nb6 {[%emt 0:01:30]} 35. Bc6 {[%emt 0:00:09]} Rf7 {[%emt 0:01:20]} 36. Qh4 {[%emt 0:00:48]} Qf8 {[%emt 0:00:16]} 37. c4 {[%emt 0:00:24]} Nbc8 {[%emt 0:00:19]} 38. c5 {[%emt 0:00:29]} Nf5 {[%emt 0:00:12]} 39. Qg4 {[%emt 0:02:10]} Nd4 {[%emt 0:00:27]} 40. Re8 {[%emt 0:00:49]} Nxc6 {[%emt 0:01:11]} 41. Rxf8+ {[%emt 0:30:04]} Rxf8 {[%emt 0:30:24]} 42. dxc6 {[%emt 0:12:26]} Na7 {[%emt 0:00:00]} 43. Qd7 {[%emt 0:00:00]} Nb5 {[%emt 0:00:00]} 44. Qd3 {[%emt 0:00:00]} Rb8 {[%emt 0:00:00]} 45. Qc4 {[%emt 0:00:00]} g5 {[%emt 0:00:00]} 46. Qf7 {[%emt 0:00:00]} Rg8 {[%emt 0:00:00]} 47. h4 {[%emt 0:00:00]} h6 {[%emt 0:00:00]} 48. hxg5 {[%emt 0:00:00]} Rxg5 {[%emt 0:00:00]} 49. Qc4 {[%emt 0:00:00]} Na3 {[%emt 0:00:00]} 50. Qxf4 {[%emt 0:00:00]} Nb1 {[%emt 0:04:13]} 51. Qxc7 {[%emt 0:00:00]} Nc3 {[%emt 0:02:14]} 52. Qd8+ {[%emt 0:00:00]} Kh7 {[%emt 0:00:35]} 53. Qd3+ {[%emt 0:00:00]} 1-0

[Event "44th Chess Olympiad Women 2022"]
[Site "Chennai"]
[Date "2022.07.30"]
[Round "2.45"]
[White "Ioannides Liu, Alice"]
[Black "Al Maamari, Wafia Darwish"]
[Result "0-1"]
[ECO "B22"]
[WhiteElo "1292"]
[BlackElo "1841"]
[Annotator "NA RC COMBH"]
[PlyCount "112"]
[EventDate "2022.07.29"]
[EventType "team-tourn"]
[EventCountry "IND"]
[SourceTitle "playchess.com"]
[Source "ChessBase"]
[SourceQuality "1"]
[WhiteTeam "Cyprus"]
[BlackTeam "United Arab Emirates"]
[WhiteTeamCountry "CYP"]
[BlackTeamCountry "UAE"]
[TimeControl "40/5400+30:1800+30"]

1. e4 {[%emt 0:00:03]} c5 {[%emt 0:00:05]} 2. c3 {[%emt 0:00:03]} Nf6 {[%emt 0:00:10]} 3. e5 {[%emt 0:00:08]} Nd5 {[%emt 0:00:06]} 4. Bc4 {[%emt 0:00:24]} Nb6 {[%emt 0:03:55]} 5. Bb3 {[%emt 0:00:04]} c4 {[%emt 0:00:38]} 6. Bc2 {[%emt 0:00:04]} Nc6 {[%emt 0:00:13]} 7. Nf3 {[%emt 0:00:12]} g6 {[%emt 0:01:01]} 8. O-O {[%emt 0:00:33]} Bg7 {[%emt 0:00:22]} 9. Re1 {[%emt 0:00:48]} O-O {[%emt 0:00:57]} 10. Na3 {[%emt 0:06:48]} d5 {[%emt 0:07:12]} 11. exd6 {[%emt 0:02:34]} exd6 {[%emt 0:05:12]} 12. d3 {[%emt 0:18:34]} Bg4 {[%emt 0:11:07]} 13. h3 {[%emt 0:03:51]} Bxf3 {[%emt 0:01:37]} 14. Qxf3 {[%emt 0:00:15]} Ne5 {[%emt 0:01:02]} 15. Qd1 {[%emt 0:01:48]} Qh4 {[%emt 0:14:59]} 16. d4 {[%emt 0:07:17]} Ned7 {[%emt 0:04:03]} 17. Qf3 {[%emt 0:04:04]} d5 {[%emt 0:04:16]} 18. Bf4 {[%emt 0:03:27]} a6 {[%emt 0:07:41]} 19. Re2 {[%emt 0:06:39]} f5 {[%emt 0:07:39]} 20. Bd6 {[%emt 0:09:39]} Rf7 {[%emt 0:04:18]} 21. Rae1 {[%emt 0:02:10]} Nf6 {[%emt 0:02:16]} 22. Bg3 {[%emt 0:06:07]} Qh6 {[%emt 0:03:26]} 23. Re7 {[%emt 0:04:25]} Rxe7 {[%emt 0:02:16]} 24. Rxe7 {[%emt 0:00:12]} Qc1+ {[%emt 0:01:02]} 25. Qd1 {[%emt 0:03:24]} Qxb2 {[%emt 0:01:34]} 26. Rxb7 {[%emt 0:01:15]} Qxa3 {[%emt 0:00:32]} 27. Rxb6 {[%emt 0:00:13]} Qxc3 {[%emt 0:01:16]} 28. f3 {[%emt 0:04:14]} Nd7 {[%emt 0:04:29]} 29. Rd6 {[%emt 0:00:49]} Qxd4+ {[%emt 0:00:58]} 30. Qxd4 {[%emt 0:00:09]} Bxd4+ {[%emt 0:00:05]} 31. Bf2 {[%emt 0:01:12]} Bxf2+ {[%emt 0:00:58]} 32. Kxf2 {[%emt 0:00:05]} Rb8 {[%emt 0:01:32]} 33. Rxd5 {[%emt 0:01:06]} Rb2 {[%emt 0:02:09]} 34. Rd2 {[%emt 0:01:10]} Rxa2 {[%emt 0:00:49]} 35. Ke3 {[%emt 0:00:22]} Ra3+ {[%emt 0:03:09]} 36. Kd4 {[%emt 0:01:00]} c3 {[%emt 0:01:45]} 37. Rd3 {[%emt 0:00:15]} Nb6 {[%emt 0:01:26]} 38. Rxc3 {[%emt 0:00:27]} Rxc3 {[%emt 0:00:08]} 39. Kxc3 {[%emt 0:00:05]} Nd5+ {[%emt 0:00:01]} 40. Kd2 {[%emt 0:05:07]} Nf4 {[%emt 0:00:09]} 41. g4 {[%emt 0:30:56]} Nxh3 {[%emt 0:32:16]} 42. gxf5 {[%emt 0:00:10]} g5 {[%emt 0:00:19]} 43. f6 {[%emt 0:02:14]} Kf7 {[%emt 0:00:15]} 44. Bxh7 {[%emt 0:00:18]} Kxf6 {[%emt 0:00:05]} 45. Kc3 {[%emt 0:00:00]} Ke5 {[%emt 0:00:00]} 46. Kb4 {[%emt 0:00:00]} Kf4 {[%emt 0:00:00]} 47. Bg8 {[%emt 0:02:40]} Ke5 {[%emt 0:00:00]} 48. Bh7 {[%emt 0:05:11]} Ng1 {[%emt 0:00:00]} 49. Bd3 {[%emt 0:01:11]} Nxf3 {[%emt 0:00:00]} 50. Be2 {[%emt 0:00:36]} g4 {[%emt 0:00:00]} 51. Bf1 {[%emt 0:00:46]} g3 {[%emt 0:00:00]} 52. Bg2 {[%emt 0:00:30]} Kf4 {[%emt 0:00:00]} 53. Ka5 {[%emt 0:00:10]} Ke3 {[%emt 0:00:00]} 54. Bh1 {[%emt 0:00:26]} Kf2 {[%emt 0:00:00]} 55. Kxa6 {[%emt 0:00:06]} Ne1 {[%emt 0:00:00]} 56. Bb7 {[%emt 0:00:14]} Nf3 {[%emt 0:00:00]} 0-1

[Event "44th Chess Olympiad Women 2022"]
[Site "Chennai"]
[Date "2022.07.30"]
[Round "2.45"]
[White "Sokolova, Victoria"]
[Black "Mariam, Essa"]
[Result "0-1"]
[ECO "A31"]
[WhiteElo "1193"]
[BlackElo "1591"]
[Annotator "NA RC COMBH"]
[PlyCount "120"]
[EventDate "2022.07.29"]
[EventType "team-tourn"]
[EventCountry "IND"]
[SourceTitle "playchess.com"]
[Source "ChessBase"]
[SourceQuality "1"]
[WhiteTeam "Cyprus"]
[BlackTeam "United Arab Emirates"]
[WhiteTeamCountry "CYP"]
[BlackTeamCountry "UAE"]
[TimeControl "40/5400+30:1800+30"]

1. c4 {[%emt 0:00:06]} c5 {[%emt 0:00:07]} 2. Nf3 {[%emt 0:00:07]} g6 {[%emt 0:00:05]} 3. Nc3 {[%emt 0:00:41]} Bg7 {[%emt 0:00:28]} 4. d4 {[%emt 0:00:30]} Nf6 {[%emt 0:02:37]} 5. Bf4 {[%emt 0:00:46]} cxd4 {[%emt 0:01:26]} 6. Nxd4 {[%emt 0:03:19]} d6 {[%emt 0:03:12]} 7. Bd2 {[%emt 0:03:48]} O-O {[%emt 0:01:38]} 8. e4 {[%emt 0:00:28]} Qb6 {[%emt 0:03:52]} 9. Nb3 {[%emt 0:00:55]} Ng4 {[%emt 0:06:57]} 10. Qe2 {[%emt 0:01:33]} Nc6 {[%emt 0:08:24]} 11. Nd5 {[%emt 0:01:23]} Qd8 {[%emt 0:02:15]} 12. h3 {[%emt 0:00:26]} Nge5 {[%emt 0:01:53]} 13. f4 {[%emt 0:02:41]} e6 {[%emt 0:05:09]} 14. Nc3 {[%emt 0:01:11]} Nd7 {[%emt 0:04:47]} 15. Qf2 {[%emt 0:02:19]} Nc5 {[%emt 0:13:52]} 16. Nxc5 {[%emt 0:07:14]} dxc5 {[%emt 0:00:05]} 17. Qxc5 {[%emt 0:06:20]} Bd4 {[%emt 0:05:19]} 18. Qg5 {[%emt 0:00:56]} Bf2+ {[%emt 0:06:24]} 19. Kxf2 {[%emt 0:12:56]} Qxd2+ {[%emt 0:00:05]} 20. Be2 {[%emt 0:00:33]} Qxb2 {[%emt 0:04:20]} 21. Rhc1 {[%emt 0:03:28]} Qd2 {[%emt 0:02:14]} 22. Qg3 {[%emt 0:02:54]} Qd4+ {[%emt 0:02:54]} 23. Qe3 {[%emt 0:00:30]} Qxe3+ {[%emt 0:01:26]} 24. Kxe3 {[%emt 0:00:08]} e5 {[%emt 0:00:03]} 25. fxe5 {[%emt 0:03:24]} Nxe5 {[%emt 0:00:13]} 26. Nd5 {[%emt 0:00:26]} Kg7 {[%emt 0:02:17]} 27. Kd4 {[%emt 0:01:08]} Nc6+ {[%emt 0:01:31]} 28. Ke3 {[%emt 0:01:23]} Bd7 {[%emt 0:00:50]} 29. Rd1 {[%emt 0:02:03]} Rad8 {[%emt 0:03:39]} 30. Rab1 {[%emt 0:01:43]} b6 {[%emt 0:01:02]} 31. Rb3 {[%emt 0:01:50]} Na5 {[%emt 0:00:58]} 32. Rb2 {[%emt 0:01:56]} Bc6 {[%emt 0:01:32]} 33. Rd4 {[%emt 0:02:38]} Rfe8 {[%emt 0:03:23]} 34. Rbd2 {[%emt 0:04:17]} Re5 {[%emt 0:02:06]} 35. Nb4 {[%emt 0:00:56]} Rxd4 {[%emt 0:00:47]} 36. Rxd4 {[%emt 0:00:15]} f5 {[%emt 0:03:15]} 37. Nxc6 {[%emt 0:00:34]} Nxc6 {[%emt 0:00:07]} 38. Rd7+ {[%emt 0:00:08]} Kh6 {[%emt 0:00:11]} 39. Bd3 {[%emt 0:01:22]} fxe4 {[%emt 0:02:57]} 40. Bxe4 {[%emt 0:01:13]} a6 {[%emt 0:02:56]} 41. Rd6 {[%emt 0:35:36]} Na5 {[%emt 0:30:40]} 42. Rd5 {[%emt 0:14:28]} Nxc4+ {[%emt 0:02:07]} 43. Kd4 {[%emt 0:00:14]} Rxd5+ {[%emt 0:01:22]} 44. Bxd5 {[%emt 0:05:18]} Nd6 {[%emt 0:00:00]} 45. Ke5 {[%emt 0:00:00]} Nb5 {[%emt 0:00:00]} 46. Kf6 {[%emt 0:00:00]} Nc7 {[%emt 0:00:00]} 47. Bf3 {[%emt 0:00:00]} g5 {[%emt 0:00:00]} 48. g3 {[%emt 0:00:00]} Ne8+ {[%emt 0:00:00]} 49. Ke7 {[%emt 0:00:00]} Ng7 {[%emt 0:00:00]} 50. Kf6 {[%emt 0:00:00]} Nh5+ {[%emt 0:00:00]} 51. Bxh5 {[%emt 0:00:00]} Kxh5 {[%emt 0:00:00]} 52. Kg7 {[%emt 0:00:00]} b5 {[%emt 0:00:00]} 53. Kxh7 {[%emt 0:00:00]} b4 {[%emt 0:00:00]} 54. g4+ {[%emt 0:00:00]} Kh4 {[%emt 0:00:00]} 55. Kg6 {[%emt 0:00:00]} a5 {[%emt 0:00:00]} 56. Kf5 {[%emt 0:00:00]} a4 {[%emt 0:00:00]} 57. Ke4 {[%emt 0:00:00]} b3 {[%emt 0:00:00]} 58. axb3 {[%emt 0:00:00]} a3 {[%emt 0:00:00]} 59. Kd3 {[%emt 0:00:00]} a2 {[%emt 0:00:00]} 60. Kc2 {[%emt 0:00:00]} a1=Q {[%emt 0:00:00]} 0-1

[Event "44th Chess Olympiad Women 2022"]
[Site "Chennai"]
[Date "2022.07.30"]
[Round "2.46"]
[White "Vega Jimenez, Keyshla M."]
[Black "Martins, Katlene Jussara"]
[Result "1-0"]
[ECO "C47"]
[WhiteElo "1653"]
[BlackElo "1287"]
[Annotator "NA RC COMBH"]
[PlyCount "99"]
[EventDate "2022.07.29"]
[EventType "team-tourn"]
[EventCountry "IND"]
[SourceTitle "playchess.com"]
[Source "ChessBase"]
[SourceQuality "1"]
[WhiteTeam "Puerto Rico"]
[BlackTeam "CPV"]
[WhiteTeamCountry "PUR"]
[TimeControl "40/5400+30:1800+30"]

1. e4 {[%emt 0:00:04]} e5 {[%emt 0:00:13]} 2. Nf3 {[%emt 0:00:07]} Nc6 {[%emt 0:00:14]} 3. Nc3 {[%emt 0:00:13]} Nf6 {[%emt 0:02:10]} 4. d4 {[%emt 0:00:21]} Bb4 {[%emt 0:01:40]} 5. Bg5 {[%emt 0:04:09]} h6 {[%emt 0:00:45]} 6. Bxf6 {[%emt 0:09:30]} Qxf6 {[%emt 0:00:57]} 7. d5 {[%emt 0:05:02]} Nd4 {[%emt 0:03:58]} 8. Be2 {[%emt 0:03:22]} O-O {[%emt 0:01:23]} 9. O-O {[%emt 0:01:27]} d6 {[%emt 0:01:39]} 10. Nxd4 {[%emt 0:02:26]} exd4 {[%emt 0:02:06]} 11. Nb5 {[%emt 0:04:18]} Bc5 {[%emt 0:01:50]} 12. Nxc7 {[%emt 0:06:49]} Rb8 {[%emt 0:01:41]} 13. Nb5 {[%emt 0:01:03]} Bd7 {[%emt 0:01:08]} 14. Qd2 {[%emt 0:08:43]} Rbe8 {[%emt 0:02:11]} 15. Rad1 {[%emt 0:09:14]} Rxe4 {[%emt 0:01:11]} 16. Bf3 {[%emt 0:04:20]} Rf4 {[%emt 0:01:45]} 17. Qd3 {[%emt 0:10:50]} a6 {[%emt 0:02:34]} 18. Na3 {[%emt 0:00:17]} Bf5 {[%emt 0:00:56]} 19. Qe2 {[%emt 0:03:24]} Bd7 {[%emt 0:03:49]} 20. Nc4 {[%emt 0:04:12]} Re8 {[%emt 0:01:44]} 21. Qd3 {[%emt 0:02:53]} Bf5 {[%emt 0:01:11]} 22. Qb3 {[%emt 0:02:58]} Bg4 {[%emt 0:00:42]} 23. Bxg4 {[%emt 0:01:23]} Rxg4 {[%emt 0:00:38]} 24. Qd3 {[%emt 0:03:07]} b5 {[%emt 0:01:40]} 25. Nd2 {[%emt 0:00:48]} Re5 {[%emt 0:01:18]} 26. Rde1 {[%emt 0:01:25]} g6 {[%emt 0:01:43]} 27. Rxe5 {[%emt 0:01:38]} Qxe5 {[%emt 0:02:31]} 28. Qf3 {[%emt 0:04:01]} Qg5 {[%emt 0:01:30]} 29. Ne4 {[%emt 0:01:36]} Qh5 {[%emt 0:01:30]} 30. Nf6+ {[%emt 0:00:09]} Kg7 {[%emt 0:00:24]} 31. Nxh5+ {[%emt 0:00:05]} gxh5 {[%emt 0:00:15]} 32. Re1 {[%emt 0:00:18]} Rg6 {[%emt 0:02:03]} 33. Qxh5 {[%emt 0:00:54]} Bb4 {[%emt 0:00:54]} 34. Re8 {[%emt 0:01:21]} Bc5 {[%emt 0:00:39]} 35. Re4 {[%emt 0:01:05]} Rg5 {[%emt 0:00:53]} 36. Rg4 {[%emt 0:00:10]} Rxg4 {[%emt 0:00:26]} 37. Qxg4+ {[%emt 0:00:06]} Kf8 {[%emt 0:00:16]} 38. Qc8+ {[%emt 0:00:30]} Ke7 {[%emt 0:00:19]} 39. Qxa6 {[%emt 0:00:07]} b4 {[%emt 0:00:19]} 40. b3 {[%emt 0:00:18]} Kf6 {[%emt 0:00:15]} 41. Qc8 {[%emt 0:30:45]} Ke5 {[%emt 0:30:22]} 42. Qe8+ {[%emt 0:00:26]} Kf6 {[%emt 0:00:43]} 43. Kf1 {[%emt 0:00:13]} Kg6 {[%emt 0:00:25]} 44. Ke2 {[%emt 0:00:19]} h5 {[%emt 0:00:32]} 45. h4 {[%emt 0:00:10]} Kf6 {[%emt 0:00:14]} 46. Kf3 {[%emt 0:00:15]} d3 {[%emt 0:00:43]} 47. cxd3 {[%emt 0:00:12]} Bd4 {[%emt 0:00:10]} 48. Qh8+ {[%emt 0:00:27]} Kf5 {[%emt 0:00:32]} 49. Qxd4 {[%emt 0:00:22]} f6 {[%emt 0:00:12]} 50. Qe4# {[%emt 0:00:08]} 1-0

[Event "44th Chess Olympiad Women 2022"]
[Site "Chennai"]
[Date "2022.07.30"]
[Round "2.46"]
[White "Spinola, Divania"]
[Black "Morales Santos, Natasha"]
[Result "0-1"]
[ECO "C00"]
[WhiteElo "1425"]
[BlackElo "1924"]
[Annotator "TA"]
[PlyCount "50"]
[EventDate "2022.07.29"]
[EventType "team-tourn"]
[EventCountry "IND"]
[SourceTitle "playchess.com"]
[Source "ChessBase"]
[SourceQuality "1"]
[WhiteTeam "CPV"]
[BlackTeam "Puerto Rico"]
[BlackTeamCountry "PUR"]
[TimeControl "40/5400+30:1800+30"]

{[%evp 9,49,-41,-42,-33,-3,-97,-32,-64,-41,-68,-24,-31,-23,-52,-45,-131,-95,-176,-175,-245,-241,-256,-238,-401,-396,-412,-272,-457,-353,-456,-464,-556,-555,-631,-619,-988,-645,-29990,-29991,-29998,-29999,-29999]} 1. e4 {[%emt 0:00:03]} e6 {[%emt 0:00:21]} 2. Nf3 {[%emt 0:00:15]} d5 {[%emt 0:00:16][%cal Bd7d5,Bd5d4,Bd4c3][%mdl 32]} 3. Nc3 {[%emt 0:00:36]} Nf6 {[%emt 0:02:35]} 4. d3 {[%emt 0:01:23]} d4 {[%emt 0:09:05] [#]} 5. e5 $146 {[%emt 0:03:52]} ({Predecessor:} 5. Ne2 Nc6 6. g3 e5 7. Bg2 g6 8. O-O Bg7 9. c3 O-O 10. cxd4 Nxd4 11. Nexd4 exd4 12. Re1 {1-0 (50) Matinian,N (2470)-Tronenkovs,V (2265) Chess.com INT 2020}) 5... dxc3 {[%emt 0:01:26]} 6. exf6 {[%emt 0:00:16] C00: French: Unusual White 2nd moves.} Qxf6 {[%emt 0:09:42]} (6... Bb4 $5 {[%cal Rc3b2]} 7. b3 Qxf6 $15) 7. b3 {[%emt 0:07:08]} (7. Bg5 $11 {keeps the balance.} Qg6 8. bxc3) 7... Nd7 {[%emt 0:06:38]} (7... Nc6 $17 8. d4 Bd6) 8. Be2 {[%emt 0:01:14] Black is slightly better.} Bd6 {[%emt 0:03:39]} 9. O-O {[%emt 0:04:23]} h6 {[%emt 0:04:28] 0x0.00144dfbbdc3dp-1022s more active pieces. The white rooks are badly placed.} 10. Be3 {[%emt 0:03:48]} c5 {[%emt 0:04:58] Against Bd4} 11. Rb1 {[%emt 0:10:10]} O-O {[%emt 0:00:57]} 12. h3 {[%emt 0:02:05]} (12. d4 $15) 12... Nb6 {[%emt 0:09:36]} 13. Qc1 {[%emt 0:03:33]} (13. d4 $17 Nd5 14. Bc4) 13... Nd5 $19 {[%emt 0:01:14]} 14. Rd1 {[%emt 0:06:06]} (14. d4 $142) 14... e5 {[%emt 0:06:03]} 15. Ra1 {[%emt 0:05:42]} Be6 {[%emt 0:01:18]} 16. Qa3 $2 {[%emt 0:08:13] [#]} (16. Re1) 16... Qe7 {[%emt 0:07:58]} 17. Re1 {[%emt 0:03:49]} b5 {[%emt 0:03:21][%cal Bb7b5,Bb5b4][%mdl 32] And now ...f5 would win.} 18. Red1 $2 {[%emt 0:04:54]} (18. Bf1) 18... b4 {[%emt 0:00:26]} 19. Qc1 {[%emt 0:00:23]} f5 {[%emt 0:01:26][%cal Bf7f5,Bf5f4][%mdl 32]} 20. a4 {[%emt 0:02:06]} f4 {[%emt 0:00:41]} 21. Bxc5 {[%emt 0:01:41]} Bxc5 {[%emt 0:00:50]} 22. Nxe5 {[%emt 0:00:18] [#]} Bxh3 $1 {[%emt 0:12:51][%mdl 512]} 23. Ng6 {[%emt 0:01:57]} (23. d4 Bxd4) 23... Qxe2 {[%emt 0:00:07] Black mates.} 24. Nxf8 {[%emt 0:01:56]} Qxf2+ {[%emt 0:00:08]} 25. Kh2 {[%emt 0:00:27]} Qxg2# {[%emt 0:00:04] Weighted Error Value: White=1.07/Black=0.44} 0-1

[Event "44th Chess Olympiad Women 2022"]
[Site "Chennai"]
[Date "2022.07.30"]
[Round "2.46"]
[White "Pio Monteiro, Juliana"]
[Black "Comas Colon, Rinelly M."]
[Result "0-1"]
[ECO "B08"]
[WhiteElo "1319"]
[BlackElo "1585"]
[Annotator "NA RC COMBH"]
[PlyCount "52"]
[EventDate "2022.07.29"]
[EventType "team-tourn"]
[EventCountry "IND"]
[SourceTitle "playchess.com"]
[Source "ChessBase"]
[SourceQuality "1"]
[WhiteTeam "CPV"]
[BlackTeam "Puerto Rico"]
[BlackTeamCountry "PUR"]
[TimeControl "40/5400+30:1800+30"]

1. e4 {[%emt 0:00:03]} g6 {[%emt 0:00:10]} 2. Nf3 {[%emt 0:00:18]} Bg7 {[%emt 0:01:04]} 3. Nc3 {[%emt 0:00:57]} d6 {[%emt 0:00:31]} 4. d4 {[%emt 0:00:44]} Nf6 {[%emt 0:00:42]} 5. Bd3 {[%emt 0:00:47]} O-O {[%emt 0:02:02]} 6. O-O {[%emt 0:00:38]} Bg4 {[%emt 0:04:10]} 7. h3 {[%emt 0:01:50]} Bxf3 {[%emt 0:01:27]} 8. Qxf3 {[%emt 0:00:29]} Nc6 {[%emt 0:01:46]} 9. Be3 {[%emt 0:03:04]} e5 {[%emt 0:00:51]} 10. d5 {[%emt 0:03:02]} Nb4 {[%emt 0:01:55]} 11. Qd1 {[%emt 0:01:19]} Nxd3 {[%emt 0:03:02]} 12. Qxd3 {[%emt 0:00:18]} a6 {[%emt 0:02:30]} 13. a4 {[%emt 0:01:40]} Qd7 {[%emt 0:07:28]} 14. Rfd1 {[%emt 0:01:40]} Nh5 {[%emt 0:11:34]} 15. Qd2 {[%emt 0:13:36]} Rac8 {[%emt 0:12:48]} 16. Ra3 {[%emt 0:16:22]} Nf6 {[%emt 0:15:45]} 17. Qd3 {[%emt 0:09:03]} c6 {[%emt 0:06:09]} 18. dxc6 {[%emt 0:00:53]} Rxc6 {[%emt 0:00:06]} 19. Nd5 {[%emt 0:01:18]} Nxd5 {[%emt 0:00:41]} 20. exd5 {[%emt 0:03:38]} Rcc8 {[%emt 0:00:22]} 21. c4 {[%emt 0:01:12]} f5 {[%emt 0:00:41]} 22. b3 {[%emt 0:06:50]} f4 {[%emt 0:03:03]} 23. Bc1 {[%emt 0:06:33]} f3 {[%emt 0:05:07]} 24. g4 {[%emt 0:02:16]} Qe7 {[%emt 0:01:36]} 25. Qe3 {[%emt 0:04:03]} Qh4 {[%emt 0:00:45]} 26. Qg5 {[%emt 0:00:45]} Qxh3 {[%emt 0:00:17]} 0-1

[Event "44th Chess Olympiad Women 2022"]
[Site "Chennai"]
[Date "2022.07.30"]
[Round "2.47"]
[White "Mwango, Lorita"]
[Black "Felix, Tobi"]
[Result "1-0"]
[WhiteElo "1920"]
[BlackElo "1460"]
[Annotator "TA"]
[PlyCount "35"]
[EventDate "2022.07.29"]
[EventType "team-tourn"]
[EventCountry "IND"]
[SourceTitle "playchess.com"]
[Source "ChessBase"]
[SourceQuality "1"]
[WhiteTeam "Zambia"]
[BlackTeam "Ghana"]
[WhiteTeamCountry "ZAM"]
[BlackTeamCountry "GHA"]
[TimeControl "40/5400+30:1800+30"]

{[%evp 9,20,-4,26,-6,11,0,-1,-4,0,0,-7,-11,0]} 1. d4 {[%emt 0:00:06]} d5 {[%emt 0:00:03]} 2. Nf3 {[%emt 0:00:11]} e6 {[%emt 0:00:35]} 3. Bf4 {[%emt 0:00:18]} Bd6 {[%emt 0:00:10]} 4. Bg3 {[%emt 0:00:10]} c5 {[%emt 0:00:37]} 5. c3 {[%emt 0:00:39]} Qc7 {[%emt 0:00:21]} 6. e3 {[%emt 0:00:36] D02: 1 d4 d5 2 Nf3 sidelines, including 2...Nf6 3 g3 and 2...Nf6 3 Bf4.} Nd7 {[%emt 0:01:17] The position is equal.} 7. Nbd2 {[%emt 0:00:40]} Ngf6 {[%emt 0:00:23]} 8. Be2 {[%emt 0:01:06]} O-O {[%emt 0:01:13]} 9. Bxd6 {[%emt 0:01:20]} Qxd6 {[%emt 0:00:23]} 10. O-O {[%emt 0:00:06]} Re8 {[%emt 0:01:01][%mdl 32768] [#] An uneventful encounter.  Weighted Error Value: White=0.10 (very precise) /Black=0.12 (very precise) . Loss on time!?} {Predecessor:} 11. Qc2 $146 c4 12. b3 b5 13. a4 cxb3 14. Qxb3 bxa4 15. Rxa4 Nb6 16. Ra5 Re7 17. Rfa1 Rb7 18. Qa2 {1-0 (28) Limberg,M (2001)-Czubaj,A (1641) Ruhrgebiet 2005} 1-0